[Event "*** Titled Tuesday Blitz"]
[Site "Chess.com"]
[Date "2021.03.02"]
[Round "10"]
[White "Maddie"]
[Black "WcmDominicToretto"]
[Result "1-0"]
[WhiteElo "2069"]
[BlackElo "1894"]
[TimeControl "180+1"]
[EndTime "11:58:57 PST"]
[Termination "Maddie won on time"]

1. d4 {[%clk 0:03:00.9]} 1... Nf6 {[%clk 0:02:57.2]} 2. e3 {[%clk 0:03:00.5]}
2... g6 {[%clk 0:02:56.9]} 3. Bd3 {[%clk 0:03:00.5]} 3... Bg7 {[%clk 0:02:52.7]}
4. f4 {[%clk 0:03:01]} 4... O-O {[%clk 0:02:51.9]} 5. Nf3 {[%clk 0:03:01.6]}
5... d6 {[%clk 0:02:48.2]} 6. O-O {[%clk 0:03:02]} 6... c5 {[%clk 0:02:43.6]} 7.
c3 {[%clk 0:03:01.6]} 7... Nc6 {[%clk 0:02:42.9]} 8. Nbd2 {[%clk 0:03:00.7]}
8... Bg4 {[%clk 0:02:42.2]} 9. Qe1 {[%clk 0:02:59.9]} 9... a6 {[%clk 0:02:38.3]}
10. Ne4 {[%clk 0:03:00.1]} 10... b5 {[%clk 0:02:26.1]} 11. Nxf6+ {[%clk
0:02:56.5]} 11... Bxf6 {[%clk 0:02:25.2]} 12. Be4 {[%clk 0:02:56.5]} 12... d5
{[%clk 0:02:20.2]} 13. Bc2 {[%clk 0:02:55.6]} 13... cxd4 {[%clk 0:02:17.7]} 14.
exd4 {[%clk 0:02:56.5]} 14... b4 {[%clk 0:02:15.8]} 15. Ne5 {[%clk 0:02:55.9]}
15... Be6 {[%clk 0:02:12.2]} 16. Nxc6 {[%clk 0:02:55.4]} 16... Qc7 {[%clk
0:02:11]} 17. Nxb4 {[%clk 0:02:54]} 17... a5 {[%clk 0:02:08]} 18. Nd3 {[%clk
0:02:54]} 18... Bxd4+ {[%clk 0:02:07.8]} 19. cxd4 {[%clk 0:02:49.8]} 19... Qxc2
{[%clk 0:02:07.4]} 20. Qd2 {[%clk 0:02:47.9]} 20... Qc4 {[%clk 0:02:05.9]} 21.
Ne5 {[%clk 0:02:47.3]} 21... Qb5 {[%clk 0:02:03.1]} 22. Nf3 {[%clk 0:02:44.5]}
22... Rac8 {[%clk 0:01:58.3]} 23. b3 {[%clk 0:02:42.5]} 23... Bf5 {[%clk
0:01:57.1]} 24. Ne1 {[%clk 0:02:33.9]} 24... Be4 {[%clk 0:01:42.3]} 25. Ba3
{[%clk 0:02:30.7]} 25... Rc7 {[%clk 0:01:39.6]} 26. Bc5 {[%clk 0:02:29.4]} 26...
Rfc8 {[%clk 0:01:36.8]} 27. Nf3 {[%clk 0:02:15.2]} 27... a4 {[%clk 0:01:23.5]}
28. bxa4 {[%clk 0:02:11.2]} 28... Qxa4 {[%clk 0:01:22.6]} 29. Ng5 {[%clk
0:02:05.2]} 29... Bf5 {[%clk 0:01:14.2]} 30. Rfe1 {[%clk 0:02:01.8]} 30... h6
{[%clk 0:01:08.9]} 31. Nf3 {[%clk 0:01:56.4]} 31... Be4 {[%clk 0:01:07.8]} 32.
Qd1 {[%clk 0:01:46.5]} 32... Bc2 {[%clk 0:00:58.2]} 33. Qd2 {[%clk 0:01:40.8]}
33... Be4 {[%clk 0:00:55.9]} 34. Qf2 {[%clk 0:01:30]} 34... Qa5 {[%clk
0:00:40.1]} 35. Nd2 {[%clk 0:01:26.8]} 35... Bf5 {[%clk 0:00:34]} 36. Nb3 {[%clk
0:01:10.9]} 36... Qa4 {[%clk 0:00:28.4]} 37. h3 {[%clk 0:01:08.4]} 37... h5
{[%clk 0:00:26.8]} 38. Re2 {[%clk 0:00:59.1]} 38... Bd3 {[%clk 0:00:23.3]} 39.
Re3 {[%clk 0:00:54.5]} 39... Be4 {[%clk 0:00:22.2]} 40. Rae1 {[%clk 0:00:50.6]}
40... Ra8 {[%clk 0:00:18.5]} 41. Nd2 {[%clk 0:00:49.3]} 41... Bf5 {[%clk
0:00:16.8]} 42. Rxe7 {[%clk 0:00:48.5]} 42... Rxe7 {[%clk 0:00:15.6]} 43. Bxe7
{[%clk 0:00:47.4]} 43... Qxa2 {[%clk 0:00:15.6]} 44. Bf6 {[%clk 0:00:41.4]}
44... Qc2 {[%clk 0:00:14.6]} 45. Qe3 {[%clk 0:00:39.3]} 45... Qc8 {[%clk
0:00:09.4]} 46. Nf3 {[%clk 0:00:36.4]} 46... Kf8 {[%clk 0:00:07.3]} 47. Ng5
{[%clk 0:00:32.9]} 47... Be4 {[%clk 0:00:06.4]} 48. Nxe4 {[%clk 0:00:32.4]}
48... dxe4 {[%clk 0:00:06.4]} 49. Qxe4 {[%clk 0:00:33.3]} 49... Kg8 {[%clk
0:00:06.5]} 50. d5 {[%clk 0:00:32.3]} 50... Qd7 {[%clk 0:00:05.2]} 51. Qe7
{[%clk 0:00:30.7]} 51... Qc8 {[%clk 0:00:04.1]} 52. d6 {[%clk 0:00:29.7]} 52...
Qc5+ {[%clk 0:00:03.9]} 53. Kh2 {[%clk 0:00:27.2]} 1-0

[Event "*** Titled Tuesday Blitz"]
[Site "Chess.com"]
[Date "2021.03.02"]
[Round "10"]
[White "turayev_shahruh17"]
[Black "FredyMatsuura"]
[Result "0-1"]
[WhiteElo "2453"]
[BlackElo "2337"]
[TimeControl "180+1"]
[EndTime "11:58:58 PST"]
[Termination "FredyMatsuura won by checkmate"]

1. e4 {[%clk 0:02:50.8]} 1... c5 {[%clk 0:02:58.5]} 2. Nc3 {[%clk 0:02:50.8]}
2... a6 {[%clk 0:02:57.7]} 3. a4 {[%clk 0:02:49.9]} 3... Nc6 {[%clk 0:02:57]} 4.
Bc4 {[%clk 0:02:49.3]} 4... e6 {[%clk 0:02:56.6]} 5. d3 {[%clk 0:02:47.8]} 5...
Nf6 {[%clk 0:02:53.8]} 6. f4 {[%clk 0:02:47.9]} 6... d5 {[%clk 0:02:53.1]} 7.
Bb3 {[%clk 0:02:47.9]} 7... c4 {[%clk 0:02:29.6]} 8. dxc4 {[%clk 0:02:37.8]}
8... dxe4 {[%clk 0:01:50.6]} 9. Qxd8+ {[%clk 0:02:29.6]} 9... Nxd8 {[%clk
0:01:50]} 10. Nge2 {[%clk 0:02:29.3]} 10... Bd7 {[%clk 0:01:46.2]} 11. Be3
{[%clk 0:02:14]} 11... Bc6 {[%clk 0:01:39.5]} 12. O-O-O {[%clk 0:02:11.3]} 12...
Bb4 {[%clk 0:01:33.2]} 13. h3 {[%clk 0:02:07.9]} 13... h5 {[%clk 0:01:29]} 14.
Bd4 {[%clk 0:02:04.1]} 14... h4 {[%clk 0:01:25.3]} 15. Be5 {[%clk 0:01:49.8]}
15... Ke7 {[%clk 0:01:12.2]} 16. Nd4 {[%clk 0:01:45.7]} 16... Bxc3 {[%clk
0:01:07.1]} 17. bxc3 {[%clk 0:01:45.1]} 17... Ne8 {[%clk 0:01:06.1]} 18. f5
{[%clk 0:01:39.7]} 18... f6 {[%clk 0:00:59.1]} 19. Bh2 {[%clk 0:01:35.8]} 19...
e5 {[%clk 0:00:40.3]} 20. Nxc6+ {[%clk 0:01:35.3]} 20... Nxc6 {[%clk 0:00:39.3]}
21. c5 {[%clk 0:01:36.2]} 21... Rh5 {[%clk 0:00:28.4]} 22. Be6 {[%clk
0:01:34.7]} 22... Rd8 {[%clk 0:00:25.6]} 23. Rxd8 {[%clk 0:01:33.2]} 23... Nxd8
{[%clk 0:00:25.4]} 24. Bd5 {[%clk 0:01:33.6]} 24... Rxf5 {[%clk 0:00:22.8]} 25.
Bxe4 {[%clk 0:01:33.9]} 25... Rg5 {[%clk 0:00:20.4]} 26. Bf3 {[%clk 0:01:30.3]}
26... Nc7 {[%clk 0:00:19.1]} 27. Rd1 {[%clk 0:01:29.2]} 27... Nce6 {[%clk
0:00:19.1]} 28. Rd5 {[%clk 0:01:28.4]} 28... Nc6 {[%clk 0:00:16.2]} 29. Kb2
{[%clk 0:01:27.9]} 29... Rg6 {[%clk 0:00:14.8]} 30. Ka3 {[%clk 0:01:25.4]} 30...
Nc7 {[%clk 0:00:12.9]} 31. Rd6 {[%clk 0:01:24.1]} 31... Ne6 {[%clk 0:00:12.4]}
32. Bxc6 {[%clk 0:01:22.4]} 32... bxc6 {[%clk 0:00:11]} 33. Rxc6 {[%clk
0:01:22.3]} 33... Rxg2 {[%clk 0:00:10.7]} 34. Bxe5 {[%clk 0:01:18.7]} 34... fxe5
{[%clk 0:00:10.2]} 35. Rxa6 {[%clk 0:01:19.6]} 35... e4 {[%clk 0:00:09.2]} 36.
Rd6 {[%clk 0:01:17.6]} 36... e3 {[%clk 0:00:08.6]} 37. Rd1 {[%clk 0:01:17.6]}
37... Rxc2 {[%clk 0:00:06.6]} 38. Kb4 {[%clk 0:01:15.7]} 38... Nf4 {[%clk
0:00:04.5]} 39. Kb5 {[%clk 0:01:11.2]} 39... e2 {[%clk 0:00:03.4]} 40. Re1
{[%clk 0:01:09.6]} 40... Nd3 {[%clk 0:00:03.8]} 41. Ra1 {[%clk 0:01:06.3]} 41...
e1=Q {[%clk 0:00:02.9]} 42. Rxe1+ {[%clk 0:01:05.8]} 42... Nxe1 {[%clk
0:00:03.5]} 43. c4 {[%clk 0:01:06.7]} 43... Kd7 {[%clk 0:00:03.4]} 44. a5 {[%clk
0:01:07.6]} 44... Rb2+ {[%clk 0:00:02.6]} 45. Ka4 {[%clk 0:01:03.6]} 45... Kc6
{[%clk 0:00:02.9]} 46. Ka3 {[%clk 0:01:04.5]} 46... Rb1 {[%clk 0:00:02.8]} 47.
Ka2 {[%clk 0:01:04.5]} 47... Rb8 {[%clk 0:00:02.7]} 48. Ka3 {[%clk 0:01:05.4]}
48... Kxc5 {[%clk 0:00:03]} 49. Ka4 {[%clk 0:01:06.3]} 49... Rb4+ {[%clk
0:00:02.5]} 50. Ka3 {[%clk 0:01:07.2]} 50... Rb8 {[%clk 0:00:01.8]} 51. a6
{[%clk 0:01:08.1]} 51... Nc2+ {[%clk 0:00:01.8]} 52. Ka2 {[%clk 0:01:07.9]}
52... Ra8 {[%clk 0:00:01.6]} 53. Kb2 {[%clk 0:01:08.8]} 53... Rxa6 {[%clk
0:00:01.5]} 54. Kxc2 {[%clk 0:01:08.9]} 54... Ra4 {[%clk 0:00:00.9]} 55. Kd3
{[%clk 0:01:09.8]} 55... Rxc4 {[%clk 0:00:01.2]} 56. Ke3 {[%clk 0:01:10.7]}
56... Rd4 {[%clk 0:00:01.8]} 57. Kf3 {[%clk 0:01:11.6]} 57... Kd5 {[%clk
0:00:01.8]} 58. Kg2 {[%clk 0:01:12.5]} 58... Ke5 {[%clk 0:00:02.3]} 59. Kh2
{[%clk 0:01:13.4]} 59... Kf5 {[%clk 0:00:02.3]} 60. Kg2 {[%clk 0:01:14.3]} 60...
Kf4 {[%clk 0:00:02.4]} 61. Kh2 {[%clk 0:01:15.2]} 61... Rd2+ {[%clk 0:00:02.6]}
62. Kg1 {[%clk 0:01:15]} 62... Kf3 {[%clk 0:00:02.9]} 63. Kf1 {[%clk 0:01:15.9]}
63... Rd1# {[%clk 0:00:02.9]} 0-1

[Event "*** Titled Tuesday Blitz"]
[Site "Chess.com"]
[Date "2021.03.02"]
[Round "10"]
[White "Balla_Tamas"]
[Black "swisspower96"]
[Result "1-0"]
[WhiteElo "2531"]
[BlackElo "2664"]
[TimeControl "180+1"]
[EndTime "11:58:59 PST"]
[Termination "Balla_Tamas won by resignation"]

1. e4 {[%clk 0:03:00.9]} 1... c6 {[%clk 0:03:00]} 2. d4 {[%clk 0:02:59.3]} 2...
d5 {[%clk 0:03:00.5]} 3. exd5 {[%clk 0:02:59.8]} 3... cxd5 {[%clk 0:03:00.7]} 4.
Bd3 {[%clk 0:03:00.4]} 4... Nc6 {[%clk 0:02:57.5]} 5. c3 {[%clk 0:02:59.5]} 5...
Qc7 {[%clk 0:02:56.3]} 6. h3 {[%clk 0:02:56]} 6... g6 {[%clk 0:02:55.8]} 7. Qc2
{[%clk 0:02:53.1]} 7... Bd7 {[%clk 0:02:38.2]} 8. Nf3 {[%clk 0:02:52.8]} 8...
Rc8 {[%clk 0:02:38.4]} 9. Qe2 {[%clk 0:02:49.7]} 9... Bf5 {[%clk 0:02:35.2]} 10.
Bb5 {[%clk 0:02:34.6]} 10... Bg7 {[%clk 0:02:30.6]} 11. O-O {[%clk 0:02:33.3]}
11... Nf6 {[%clk 0:02:30.2]} 12. g4 {[%clk 0:02:28.1]} 12... Bd7 {[%clk
0:02:26]} 13. Bd3 {[%clk 0:02:26.8]} 13... h5 {[%clk 0:02:16.3]} 14. g5 {[%clk
0:02:26]} 14... Ne4 {[%clk 0:02:14.9]} 15. Bxe4 {[%clk 0:02:15.4]} 15... dxe4
{[%clk 0:02:12]} 16. Qxe4 {[%clk 0:02:16]} 16... Bxh3 {[%clk 0:02:10.5]} 17. Bf4
{[%clk 0:02:14]} 17... Qd7 {[%clk 0:02:07.3]} 18. Re1 {[%clk 0:02:13.4]} 18...
h4 {[%clk 0:01:43.9]} 19. Bh2 {[%clk 0:01:59]} 19... Bf5 {[%clk 0:01:36.1]} 20.
Qf4 {[%clk 0:01:51.7]} 20... h3 {[%clk 0:01:20.8]} 21. Nbd2 {[%clk 0:01:49]}
21... O-O {[%clk 0:01:14.4]} 22. Ne4 {[%clk 0:01:44.6]} 22... b6 {[%clk
0:01:10.3]} 23. Ng3 {[%clk 0:01:41.4]} 23... Bg4 {[%clk 0:01:09.8]} 24. Re3
{[%clk 0:01:39.1]} 24... Rfe8 {[%clk 0:00:57.4]} 25. Rae1 {[%clk 0:01:36.8]}
25... Bxf3 {[%clk 0:00:50.2]} 26. Qxf3 {[%clk 0:01:34.9]} 26... e5 {[%clk
0:00:50.6]} 27. d5 {[%clk 0:01:32.6]} 27... Ne7 {[%clk 0:00:47.7]} 28. Rd1
{[%clk 0:01:28.4]} 28... Rc4 {[%clk 0:00:37.2]} 29. Ne4 {[%clk 0:01:27.5]} 29...
Nf5 {[%clk 0:00:37.2]} 30. Ree1 {[%clk 0:01:00.3]} 30... Nh4 {[%clk 0:00:34]}
31. Qg3 {[%clk 0:00:59.9]} 31... Ng2 {[%clk 0:00:33.7]} 32. Re2 {[%clk
0:00:54.3]} 32... Nf4 {[%clk 0:00:33.8]} 33. Ree1 {[%clk 0:00:53.2]} 33... Rd8
{[%clk 0:00:26.3]} 34. Qf3 {[%clk 0:00:50.6]} 34... Qf5 {[%clk 0:00:21.9]} 35.
Bxf4 {[%clk 0:00:43.8]} 35... exf4 {[%clk 0:00:22.4]} 36. b3 {[%clk 0:00:44]}
36... Rcc8 {[%clk 0:00:17.7]} 37. c4 {[%clk 0:00:43.5]} 37... Re8 {[%clk
0:00:11.4]} 38. Kh1 {[%clk 0:00:40.7]} 38... Rcd8 {[%clk 0:00:11.1]} 39. Re2
{[%clk 0:00:33.5]} 39... Re5 {[%clk 0:00:11.1]} 40. Rde1 {[%clk 0:00:32.6]}
40... Kf8 {[%clk 0:00:11.4]} 41. Kh2 {[%clk 0:00:30.7]} 41... Rde8 {[%clk
0:00:05.6]} 42. Nd6 {[%clk 0:00:26]} 42... Rxe2 {[%clk 0:00:02.7]} 43. Rxe2
{[%clk 0:00:26.9]} 43... Rxe2 {[%clk 0:00:02.3]} 44. Qxe2 {[%clk 0:00:27.1]}
44... Qd7 {[%clk 0:00:02]} 45. Ne4 {[%clk 0:00:26]} 45... f3 {[%clk 0:00:02.2]}
46. Qxf3 {[%clk 0:00:25.5]} 46... Be5+ {[%clk 0:00:03]} 47. Kh1 {[%clk
0:00:25.7]} 47... Kg7 {[%clk 0:00:03.6]} 48. Ng3 {[%clk 0:00:19.1]} 48... Qf5
{[%clk 0:00:04.3]} 49. Nxf5+ {[%clk 0:00:18.2]} 1-0

[Event "*** Titled Tuesday Blitz"]
[Site "Chess.com"]
[Date "2021.03.02"]
[Round "10"]
[White "Fortitudine"]
[Black "Matensien"]
[Result "0-1"]
[WhiteElo "2324"]
[BlackElo "2481"]
[TimeControl "180+1"]
[EndTime "11:59:02 PST"]
[Termination "Matensien won by resignation"]

1. c4 {[%clk 0:03:00.9]} 1... Nf6 {[%clk 0:02:59.3]} 2. g3 {[%clk 0:03:00.2]}
2... g6 {[%clk 0:02:58.8]} 3. Nc3 {[%clk 0:02:58.3]} 3... Bg7 {[%clk 0:02:59.3]}
4. e4 {[%clk 0:02:58.1]} 4... c5 {[%clk 0:02:58.6]} 5. d3 {[%clk 0:02:57.3]}
5... O-O {[%clk 0:02:58.9]} 6. Bg2 {[%clk 0:02:56.6]} 6... Nc6 {[%clk
0:02:59.3]} 7. Nge2 {[%clk 0:02:56.7]} 7... d6 {[%clk 0:02:59.6]} 8. O-O {[%clk
0:02:56.6]} 8... a6 {[%clk 0:03:00.2]} 9. h3 {[%clk 0:02:55.1]} 9... Rb8 {[%clk
0:03:00.6]} 10. a4 {[%clk 0:02:53.8]} 10... Nd4 {[%clk 0:02:50.5]} 11. Nxd4
{[%clk 0:02:51.8]} 11... cxd4 {[%clk 0:02:51.4]} 12. Ne2 {[%clk 0:02:52]} 12...
Nd7 {[%clk 0:02:38.9]} 13. b4 {[%clk 0:02:45.7]} 13... b5 {[%clk 0:02:38.3]} 14.
cxb5 {[%clk 0:02:45.6]} 14... axb5 {[%clk 0:02:39.2]} 15. a5 {[%clk 0:02:46.3]}
15... Bb7 {[%clk 0:02:33.4]} 16. Bb2 {[%clk 0:02:19.9]} 16... e5 {[%clk
0:02:33.1]} 17. Qb3 {[%clk 0:01:52.3]} 17... d5 {[%clk 0:02:17.9]} 18. exd5
{[%clk 0:01:48.6]} 18... Nf6 {[%clk 0:02:17.6]} 19. Rfc1 {[%clk 0:01:27.6]}
19... Bxd5 {[%clk 0:02:14.9]} 20. Bxd5 {[%clk 0:01:26.8]} 20... Qxd5 {[%clk
0:02:15.5]} 21. Qxd5 {[%clk 0:00:56]} 21... Nxd5 {[%clk 0:02:16.4]} 22. Ba3
{[%clk 0:00:55.4]} 22... Rfc8 {[%clk 0:02:13.8]} 23. Rxc8+ {[%clk 0:00:50.8]}
23... Rxc8 {[%clk 0:02:14.7]} 24. Rc1 {[%clk 0:00:50.7]} 24... Nc3 {[%clk
0:01:27.4]} 25. Kf1 {[%clk 0:00:34.8]} 25... Bf8 {[%clk 0:01:24.5]} 26. Nxc3
{[%clk 0:00:23.2]} 26... dxc3 {[%clk 0:01:24]} 27. Rc2 {[%clk 0:00:20.4]} 27...
Rc6 {[%clk 0:01:22.8]} 28. Ke2 {[%clk 0:00:20.5]} 28... f5 {[%clk 0:01:20.1]}
29. f3 {[%clk 0:00:20.6]} 29... Kf7 {[%clk 0:01:19.8]} 30. g4 {[%clk 0:00:20.9]}
30... Ke6 {[%clk 0:01:19.4]} 31. Kd1 {[%clk 0:00:18.7]} 31... Kd5 {[%clk
0:01:19.4]} 32. Re2 {[%clk 0:00:16.8]} 32... Kd4 {[%clk 0:01:15.3]} 33. Kc2
{[%clk 0:00:16.9]} 33... h5 {[%clk 0:01:06.9]} 34. gxh5 {[%clk 0:00:15.7]} 34...
gxh5 {[%clk 0:01:07]} 35. Rg2 {[%clk 0:00:15.5]} 35... Ke3 {[%clk 0:00:57.9]}
36. Rg8 {[%clk 0:00:13.9]} 36... Bd6 {[%clk 0:00:55]} 37. Rg5 {[%clk 0:00:10.5]}
37... f4 {[%clk 0:00:51]} 38. Rxh5 {[%clk 0:00:10.8]} 38... Kxf3 {[%clk
0:00:51.7]} 39. Rh6 {[%clk 0:00:10.5]} 39... Kg3 {[%clk 0:00:45.2]} 40. Bc1
{[%clk 0:00:06.8]} 40... f3 {[%clk 0:00:41.5]} 41. Be3 {[%clk 0:00:06.7]} 41...
Bc5 {[%clk 0:00:24.5]} 42. Rxc6 {[%clk 0:00:04.6]} 42... Bxe3 {[%clk 0:00:25]}
43. Rg6+ {[%clk 0:00:01.3]} 43... Kxh3 {[%clk 0:00:24.6]} 44. d4 {[%clk
0:00:01.9]} 44... f2 {[%clk 0:00:24.4]} 45. Rf6 {[%clk 0:00:01.5]} 45... Bf4
{[%clk 0:00:24.6]} 46. Rxf4 {[%clk 0:00:01.4]} 46... exf4 {[%clk 0:00:24.5]} 47.
a6 {[%clk 0:00:02.3]} 47... f1=Q {[%clk 0:00:25]} 48. a7 {[%clk 0:00:03.2]}
48... Qa1 {[%clk 0:00:22.7]} 49. Kd3 {[%clk 0:00:03.3]} 49... Qxa7 {[%clk
0:00:22.6]} 0-1

[Event "*** Titled Tuesday Blitz"]
[Site "Chess.com"]
[Date "2021.03.02"]
[Round "10"]
[White "Chamal_Gedgafov"]
[Black "guillembaches"]
[Result "1-0"]
[WhiteElo "2286"]
[BlackElo "2427"]
[TimeControl "180+1"]
[EndTime "11:59:03 PST"]
[Termination "Chamal_Gedgafov won by checkmate"]

1. d4 {[%clk 0:03:00.9]} 1... Nf6 {[%clk 0:02:57]} 2. c4 {[%clk 0:03:00.6]} 2...
e6 {[%clk 0:02:56.9]} 3. Nc3 {[%clk 0:02:59.1]} 3... Bb4 {[%clk 0:02:57]} 4. e3
{[%clk 0:02:58.9]} 4... O-O {[%clk 0:02:56.8]} 5. Ne2 {[%clk 0:02:59.8]} 5... c6
{[%clk 0:02:56.3]} 6. a3 {[%clk 0:02:59.3]} 6... Ba5 {[%clk 0:02:56.2]} 7. b4
{[%clk 0:02:58.6]} 7... Bc7 {[%clk 0:02:56.3]} 8. c5 {[%clk 0:02:58.9]} 8... d5
{[%clk 0:02:56.5]} 9. cxd6 {[%clk 0:02:58.4]} 9... Qxd6 {[%clk 0:02:56.5]} 10.
Ng3 {[%clk 0:02:54.5]} 10... e5 {[%clk 0:02:53.3]} 11. dxe5 {[%clk 0:02:50.6]}
11... Qxd1+ {[%clk 0:02:50.5]} 12. Nxd1 {[%clk 0:02:48.8]} 12... Bxe5 {[%clk
0:02:50.6]} 13. Bb2 {[%clk 0:02:48.2]} 13... Nbd7 {[%clk 0:02:42.8]} 14. Bc4
{[%clk 0:02:45.3]} 14... a5 {[%clk 0:02:38.5]} 15. b5 {[%clk 0:02:40.5]} 15...
Bxb2 {[%clk 0:01:57.2]} 16. Nxb2 {[%clk 0:02:38.6]} 16... Nb6 {[%clk 0:01:56.9]}
17. Be2 {[%clk 0:02:36.5]} 17... Bd7 {[%clk 0:01:50.2]} 18. bxc6 {[%clk
0:02:21]} 18... Bxc6 {[%clk 0:01:50.1]} 19. O-O {[%clk 0:02:15.8]} 19... Rfd8
{[%clk 0:01:43.2]} 20. Rfd1 {[%clk 0:02:12.1]} 20... g6 {[%clk 0:01:43.2]} 21.
Nc4 {[%clk 0:01:54.9]} 21... Nxc4 {[%clk 0:01:37.1]} 22. Bxc4 {[%clk 0:01:55.8]}
22... b5 {[%clk 0:01:30.3]} 23. Bb3 {[%clk 0:01:43.3]} 23... b4 {[%clk
0:01:14.6]} 24. axb4 {[%clk 0:01:41.8]} 24... axb4 {[%clk 0:01:13.7]} 25. Rxa8
{[%clk 0:01:33.9]} 25... Rxa8 {[%clk 0:01:10.9]} 26. Ne2 {[%clk 0:01:32.8]}
26... Bd5 {[%clk 0:01:01.4]} 27. Bxd5 {[%clk 0:01:19]} 27... Nxd5 {[%clk
0:01:02.3]} 28. g3 {[%clk 0:01:03.4]} 28... Nf6 {[%clk 0:00:37.3]} 29. Rb1
{[%clk 0:00:44.3]} 29... Rb8 {[%clk 0:00:34.8]} 30. Nd4 {[%clk 0:00:39.1]} 30...
Rb6 {[%clk 0:00:34.7]} 31. Kf1 {[%clk 0:00:36.5]} 31... Ne4 {[%clk 0:00:34.3]}
32. Ke1 {[%clk 0:00:31.5]} 32... h5 {[%clk 0:00:31.4]} 33. f3 {[%clk 0:00:30.9]}
33... Nc3 {[%clk 0:00:26.1]} 34. Rb3 {[%clk 0:00:29.9]} 34... Na4 {[%clk
0:00:25.2]} 35. Kd2 {[%clk 0:00:25.7]} 35... Nc5 {[%clk 0:00:24.7]} 36. Rb2
{[%clk 0:00:22.9]} 36... b3 {[%clk 0:00:23.6]} 37. e4 {[%clk 0:00:19.6]} 37...
Kg7 {[%clk 0:00:23.5]} 38. Ke3 {[%clk 0:00:18.4]} 38... Kf6 {[%clk 0:00:23.2]}
39. f4 {[%clk 0:00:18.5]} 39... Rb4 {[%clk 0:00:21.6]} 40. e5+ {[%clk
0:00:18.2]} 40... Kg7 {[%clk 0:00:21.6]} 41. Nc6 {[%clk 0:00:17.1]} 41... Re4+
{[%clk 0:00:19.6]} 42. Kf3 {[%clk 0:00:16.3]} 42... Rc4 {[%clk 0:00:19.5]} 43.
Ne7 {[%clk 0:00:14.3]} 43... Rc2 {[%clk 0:00:19.5]} 44. Rb1 {[%clk 0:00:13.5]}
44... b2 {[%clk 0:00:19.8]} 45. Nd5 {[%clk 0:00:11.6]} 45... Na4 {[%clk
0:00:19.9]} 46. Rd1 {[%clk 0:00:05.3]} 46... Rxh2 {[%clk 0:00:19]} 47. Nf6
{[%clk 0:00:04.2]} 47... Nc3 {[%clk 0:00:18.7]} 48. Rd8 {[%clk 0:00:03.5]} 48...
g5 {[%clk 0:00:17.3]} 49. Rg8+ {[%clk 0:00:02.8]} 49... Kh6 {[%clk 0:00:17.2]}
50. fxg5# {[%clk 0:00:02]} 1-0

[Event "*** Titled Tuesday Blitz"]
[Site "Chess.com"]
[Date "2021.03.02"]
[Round "10"]
[White "pavelalexandru07"]
[Black "KarateBaby"]
[Result "1-0"]
[WhiteElo "2300"]
[BlackElo "2204"]
[TimeControl "180+1"]
[EndTime "11:59:03 PST"]
[Termination "pavelalexandru07 won on time"]

1. e4 {[%clk 0:02:57.7]} 1... g6 {[%clk 0:03:00.9]} 2. d4 {[%clk 0:02:57.2]}
2... Bg7 {[%clk 0:03:01.8]} 3. c4 {[%clk 0:02:56.1]} 3... d6 {[%clk 0:03:02.7]}
4. Nc3 {[%clk 0:02:56.2]} 4... Nf6 {[%clk 0:02:46.2]} 5. Be2 {[%clk 0:02:53.1]}
5... O-O {[%clk 0:02:39.9]} 6. Be3 {[%clk 0:02:51.5]} 6... Na6 {[%clk
0:02:07.5]} 7. Nf3 {[%clk 0:02:47.3]} 7... e5 {[%clk 0:02:02.2]} 8. d5 {[%clk
0:02:45.8]} 8... Nd7 {[%clk 0:01:56.5]} 9. Nd2 {[%clk 0:02:38.4]} 9... Nac5
{[%clk 0:01:49.9]} 10. b4 {[%clk 0:02:28.5]} 10... Na6 {[%clk 0:01:49.1]} 11. a3
{[%clk 0:02:28.2]} 11... f5 {[%clk 0:01:47.9]} 12. f3 {[%clk 0:02:14.3]} 12...
Nf6 {[%clk 0:01:26.1]} 13. O-O {[%clk 0:02:12.5]} 13... f4 {[%clk 0:01:23.2]}
14. Bf2 {[%clk 0:02:10.8]} 14... g5 {[%clk 0:01:24.1]} 15. c5 {[%clk 0:01:51.9]}
15... h5 {[%clk 0:01:14.7]} 16. Qa4 {[%clk 0:01:43.9]} 16... Nb8 {[%clk
0:01:03.6]} 17. Rab1 {[%clk 0:01:40.3]} 17... Bd7 {[%clk 0:01:01.6]} 18. b5
{[%clk 0:01:29.3]} 18... g4 {[%clk 0:01:00.2]} 19. c6 {[%clk 0:01:24.1]} 19...
bxc6 {[%clk 0:00:56.7]} 20. bxc6 {[%clk 0:01:22.7]} 20... Bc8 {[%clk 0:00:52.7]}
21. Bxa7 {[%clk 0:01:19.5]} 21... Na6 {[%clk 0:00:49.6]} 22. Bf2 {[%clk
0:01:15.4]} 22... g3 {[%clk 0:00:42.1]} 23. hxg3 {[%clk 0:01:13.6]} 23... fxg3
{[%clk 0:00:42.3]} 24. Bxg3 {[%clk 0:01:13.9]} 24... Bh6 {[%clk 0:00:40.8]} 25.
Nc4 {[%clk 0:01:08.7]} 25... Rf7 {[%clk 0:00:24.7]} 26. Bh4 {[%clk 0:00:48.1]}
26... Rg7 {[%clk 0:00:23.5]} 27. Qb3 {[%clk 0:00:38]} 27... Nc5 {[%clk
0:00:11.7]} 28. Qc2 {[%clk 0:00:36.6]} 28... Bh3 {[%clk 0:00:10]} 29. Rf2 {[%clk
0:00:33.7]} 29... Rxa3 {[%clk 0:00:10.3]} 30. Nxa3 {[%clk 0:00:33.2]} 30... Be3
{[%clk 0:00:10.2]} 31. Bf1 {[%clk 0:00:29.6]} 31... Bxf2+ {[%clk 0:00:09.7]} 32.
Qxf2 {[%clk 0:00:29.5]} 32... Qf8 {[%clk 0:00:08.8]} 33. Kh1 {[%clk 0:00:25.1]}
33... Nd3 {[%clk 0:00:06.7]} 34. Bxd3 {[%clk 0:00:23.1]} 34... Bxg2+ {[%clk
0:00:07.3]} 35. Qxg2 {[%clk 0:00:23.5]} 35... Rxg2 {[%clk 0:00:07.7]} 36. Kxg2
{[%clk 0:00:24]} 36... Qh6 {[%clk 0:00:07.8]} 37. Rd1 {[%clk 0:00:12.8]} 37...
Qe3 {[%clk 0:00:06.9]} 38. Nc2 {[%clk 0:00:12.2]} 38... Qc5 {[%clk 0:00:06.6]}
39. Ne2 {[%clk 0:00:09.8]} 39... Kf7 {[%clk 0:00:05.8]} 40. Bf2 {[%clk
0:00:09.3]} 40... Qa5 {[%clk 0:00:04.8]} 41. Ne3 {[%clk 0:00:09.2]} 41... h4
{[%clk 0:00:04.2]} 42. Bxh4 {[%clk 0:00:08.3]} 42... Nh5 {[%clk 0:00:04.4]} 43.
Bf2 {[%clk 0:00:07.6]} 43... Qa8 {[%clk 0:00:04.1]} 44. Nf5 {[%clk 0:00:07.3]}
44... Qg8+ {[%clk 0:00:03.9]} 45. Neg3 {[%clk 0:00:07.4]} 45... Nf4+ {[%clk
0:00:03.9]} 46. Kf1 {[%clk 0:00:08]} 46... Qh8 {[%clk 0:00:02.9]} 47. Ke1 {[%clk
0:00:05.9]} 47... Qh2 {[%clk 0:00:02.1]} 48. Bf1 {[%clk 0:00:05.6]} 1-0